[Event "European School-ch 2019"]
[Site "Mamaia"]
[Date "2019.06.07"]
[Round "8.18"]
[White "Baranciuc, Alexandr"]
[Black "Aubury, Benjamin"]
[Result "1/2-1/2"]
[ECO "C07"]
[WhiteElo "1900"]
[BlackElo "1681"]
[Annotator "NA RC"]
[PlyCount "102"]
[EventDate "2019.05.31"]
[EventType "swiss"]
[EventCountry "ROU"]
[SourceTitle "playchess.com"]
[Source "ChessBase"]
[SourceQuality "1"]
[TimeControl "40/5400+30:1800+30"]

1. e4 {[%emt 0:00:00]} e6 {[%emt 0:00:00]} 2. d4 {[%emt 0:00:05]} d5 {[%emt 0:00:00]} 3. Nd2 {[%emt 0:00:18]} c5 {[%emt 0:00:07]} 4. exd5 {[%emt 0:07:25]} Qxd5 {[%emt 0:00:19]} 5. dxc5 {[%emt 0:01:16]} Nf6 {[%emt 0:01:02]} 6. Ngf3 {[%emt 0:04:00]} Qxc5 {[%emt 0:00:37]} 7. Bd3 {[%emt 0:03:12]} Be7 {[%emt 0:00:46]} 8. O-O {[%emt 0:00:16]} Qc7 {[%emt 0:01:37]} 9. Qe2 {[%emt 0:08:41]} Nbd7 {[%emt 0:01:15]} 10. Nb3 {[%emt 0:05:18]} O-O {[%emt 0:01:05]} 11. Bd2 {[%emt 0:01:59]} b6 {[%emt 0:03:04]} 12. Rfe1 {[%emt 0:05:05]} Bb7 {[%emt 0:03:36]} 13. Rad1 {[%emt 0:00:51]} Rac8 {[%emt 0:03:52]} 14. c3 {[%emt 0:02:43]} Nd5 {[%emt 0:04:20]} 15. Nbd4 {[%emt 0:05:00]} Nc5 {[%emt 0:05:34]} 16. Bb1 {[%emt 0:02:26]} Ba6 {[%emt 0:11:14]} 17. c4 {[%emt 0:07:32]} Nf6 {[%emt 0:07:07]} 18. g3 {[%emt 0:16:41]} Ncd7 {[%emt 0:06:14]} 19. b3 {[%emt 0:00:45]} Qc5 {[%emt 0:06:18]} 20. Bf4 {[%emt 0:12:44]} Rfe8 {[%emt 0:09:29]} 21. Ng5 {[%emt 0:02:09]} Bf8 {[%emt 0:07:37]} 22. Ndf3 {[%emt 0:03:31]} h6 {[%emt 0:01:37]} 23. Ne4 {[%emt 0:00:45]} Nxe4 {[%emt 0:00:50]} 24. Bxe4 {[%emt 0:01:03]} Nf6 {[%emt 0:00:19]} 25. Bb1 {[%emt 0:00:01]} Qh5 {[%emt 0:00:54]} 26. Ne5 {[%emt 0:07:21]} Qh3 {[%emt 0:02:29]} 27. f3 {[%emt 0:00:18]} Nh5 {[%emt 0:01:06]} 28. Bc1 {[%emt 0:00:14]} Bc5+ {[%emt 0:00:51]} 29. Be3 {[%emt 0:00:58]} Nxg3 {[%emt 0:02:23]} 30. hxg3 {[%emt 0:00:46]} Qxg3+ {[%emt 0:00:09]} 31. Qg2 {[%emt 0:00:01]} Qxe5 {[%emt 0:00:16]} 32. Bxc5 {[%emt 0:00:11]} Qxc5+ {[%emt 0:00:08]} 33. Kh1 {[%emt 0:00:01]} Qh5+ {[%emt 0:00:25]} 34. Kg1 {[%emt 0:00:04]} Rc5 {[%emt 0:00:41]} 35. Re4 {[%emt 0:00:43]} Bb7 {[%emt 0:02:46]} 36. Rg4 {[%emt 0:00:44]} Rg5 {[%emt 0:00:45]} 37. Rxg5 {[%emt 0:01:25]} hxg5 {[%emt 0:00:33]} 38. Kf2 {[%emt 0:00:26]} Qh6 {[%emt 0:01:56]} 39. Rh1 {[%emt 0:00:16]} Qf6 {[%emt 0:00:26]} 40. Qh3 {[%emt 0:00:00]} Qd4+ {[%emt 0:00:00]} 41. Ke2 {[%emt 0:03:08]} Qb2+ {[%emt 0:02:53]} 42. Ke3 {[%emt 0:00:35]} Kf8 {[%emt 0:00:59]} 43. Qg3 {[%emt 0:01:46]} Rd8 {[%emt 0:03:20]} 44. Rh8+ {[%emt 0:06:03]} Ke7 {[%emt 0:00:15]} 45. Qxg5+ {[%emt 0:00:07]} Qf6 {[%emt 0:00:12]} 46. Qxf6+ {[%emt 0:00:05]} gxf6 {[%emt 0:00:14]} 47. Rh7 {[%emt 0:00:47]} Rg8 {[%emt 0:00:27]} 48. Kf2 {[%emt 0:00:34]} Bc6 {[%emt 0:00:49]} 49. b4 {[%emt 0:00:34]} Rg5 {[%emt 0:01:00]} 50. Rh8 {[%emt 0:00:57]} Be8 {[%emt 0:01:24]} 51. Be4 {[%emt 0:01:24]} Re5 {[%emt 0:01:31]} 1/2-1/2

[Event "European School-ch 2019"]
[Site "Mamaia"]
[Date "2019.06.07"]
[Round "8.19"]
[White "Samunenkov, Ihor"]
[Black "Celik, Hasan Huseyin"]
[Result "1-0"]
[ECO "C07"]
[WhiteElo "1972"]
[BlackElo "1727"]
[Annotator "NA RC"]
[PlyCount "119"]
[EventDate "2019.05.31"]
[EventType "swiss"]
[EventCountry "ROU"]
[SourceTitle "playchess.com"]
[Source "ChessBase"]
[SourceQuality "1"]
[TimeControl "40/5400+30:1800+30"]

1. e4 {[%emt 0:00:00]} e6 {[%emt 0:00:00]} 2. d4 {[%emt 0:00:02]} d5 {[%emt 0:00:00]} 3. Nd2 {[%emt 0:00:15]} c5 {[%emt 0:00:00]} 4. exd5 {[%emt 0:00:20]} Qxd5 {[%emt 0:00:18]} 5. dxc5 {[%emt 0:00:35]} Bxc5 {[%emt 0:00:19]} 6. Ngf3 {[%emt 0:00:28]} Nf6 {[%emt 0:00:25]} 7. Bc4 {[%emt 0:00:37]} Qc6 {[%emt 0:00:40] C07: French Tarrasch: 3...c5, 4 Ngf3 and 4 exd5 Qxd5} 8. Qe2 {[%emt 0:00:28]} O-O {[%emt 0:00:16]} 9. O-O {[%emt 0:02:54]} Nbd7 {[%emt 0:01:14]} (9... b6 10. Nb3 Bb7 11. Nxc5 Qxc5 12. b3 Nbd7 13. Bb2 Qh5 14. Ne5 Qxe2 15. Bxe2 Nxe5 16. Bxe5 {½-½ (68) Bruzon Batista,L (2653)-Lenderman,A (2626) Saint Louis 2018}) 10. Nb3 {[%emt 0:03:47]} Bd6 {[%emt 0:00:39]} 11. Nbd4 {[%emt 0:07:12]} Qc5 {[%emt 0:00:15]} 12. Rd1 $146 {[%emt 0:06:53]} ({Predecessor:} 12. Nb5 Bb8 13. b3 a6 14. Ba3 Qh5 15. Nd6 Bxd6 16. Bxd6 {½-½ (47) Yildiz Kadioglu,B (2330)-Genc,C (2203) Konya 2012}) 12... Ne5 {[%emt 0:07:30]} 13. Bb3 {[%emt 0:02:02]} a6 {[%emt 0:01:46]} 14. a4 {[%emt 0:10:33]} Nxf3+ {[%emt 0:08:12]} 15. Nxf3 {[%emt 0:01:25]} e5 {[%emt 0:01:23]} 16. h3 {[%emt 0:06:52]} e4 {[%emt 0:04:49]} 17. Nd2 {[%emt 0:10:56]} Qe5 {[%emt 0:04:42]} 18. g3 {[%emt 0:07:55]} Bc5 {[%emt 0:04:07]} 19. Kg2 {[%emt 0:04:13]} Qf5 {[%emt 0:01:31]} 20. Rh1 {[%emt 0:04:13]} Bd7 {[%emt 0:08:52]} 21. Nc4 {[%emt 0:05:26]} Nd5 {[%emt 0:09:26]} 22. Be3 {[%emt 0:04:16]} Nxe3+ {[%emt 0:01:05]} 23. Nxe3 {[%emt 0:00:46]} Qg5 {[%emt 0:01:41]} 24. Rad1 {[%emt 0:01:09]} Bc6 {[%emt 0:02:06]} 25. Bd5 {[%emt 0:08:19]} Rac8 {[%emt 0:02:28]} 26. h4 {[%emt 0:01:21]} Qf6 {[%emt 0:00:18]} 27. Bxc6 {[%emt 0:00:39]} Qxc6 {[%emt 0:00:18]} 28. Nd5 {[%emt 0:05:30]} Rfe8 {[%emt 0:01:59]} 29. b3 {[%emt 0:00:44]} Bf8 {[%emt 0:00:28]} 30. c4 {[%emt 0:00:58]} Rcd8 {[%emt 0:01:33]} 31. Rd2 {[%emt 0:01:23]} Bc5 {[%emt 0:03:52]} 32. Rdd1 {[%emt 0:01:57]} Bf8 {[%emt 0:02:24]} 33. Rhe1 {[%emt 0:00:26]} f5 {[%emt 0:01:11]} 34. Ne3 {[%emt 0:00:40]} g6 {[%emt 0:00:53]} 35. h5 {[%emt 0:00:16]} Qc5 {[%emt 0:07:48]} 36. hxg6 {[%emt 0:00:39]} hxg6 {[%emt 0:00:07]} 37. Nd5 {[%emt 0:00:27]} Bg7 {[%emt 0:00:13]} 38. Qd2 {[%emt 0:01:01]} Kf7 {[%emt 0:01:24]} 39. Qg5 {[%emt 0:00:59]} Qc6 {[%emt 0:00:53]} 40. Rh1 {[%emt 0:00:00]} b5 {[%emt 0:00:00]} 41. Rh7 {[%emt 0:11:49]} bxc4 {[%emt 0:03:38]} 42. bxc4 {[%emt 0:00:30]} e3 {[%emt 0:06:33]} 43. fxe3 {[%emt 0:06:50]} Kg8 {[%emt 0:00:42]} 44. Rh4 {[%emt 0:04:50]} Rd6 {[%emt 0:02:39]} 45. Kh3 {[%emt 0:02:22]} Rde6 {[%emt 0:00:30]} 46. Rg1 {[%emt 0:03:00]} a5 {[%emt 0:01:59]} 47. Rf1 {[%emt 0:01:22]} Qd6 {[%emt 0:02:03]} 48. g4 {[%emt 0:01:43]} (48. Rhf4 $16) 48... fxg4+ $2 {[%emt 0:02:13]} (48... f4 $1 $15 49. Kg2 (49. Nxf4 $2 Rf6 $19) (49. Rxf4 $2 Rxe3+ 50. Nxe3 Rxe3+ 51. Kg2 Qd2+ 52. Rf2 Rg3+ {[%mdl 64] Discovered Attack} 53. Kxg3 Qxg5 $19) 49... fxe3) 49. Rxg4 {[%emt 0:00:14]} Qd8 {[%emt 0:01:20] [#]} (49... Qc6 $16 50. Kg3 (50. Qf4 Rf8 $17) 50... Qd6+ 51. Kg2 Rf8 52. Rxf8+ Qxf8) 50. Qxd8 $1 {[%emt 0:00:31]} ({Don't play} 50. Qf4 $6 Rf8 $16) 50... Rxd8 {[%emt 0:00:01]} 51. Rb1 {[%emt 0:00:21]} Rf8 {[%emt 0:02:29]} 52. Kg2 $18 {[%emt 0:01:00]} Bh6 {[%emt 0:00:41]} 53. e4 {[%emt 0:00:37]} Rf7 {[%emt 0:01:02]} 54. Rb6 {[%emt 0:01:12]} Rxb6 {[%emt 0:00:07]} 55. Nxb6 {[%emt 0:00:01]} Kg7 {[%emt 0:00:10]} 56. Nd5 {[%emt 0:00:18]} Rb7 {[%emt 0:00:09]} 57. e5 {[%emt 0:00:38]} Rb2+ {[%emt 0:00:08]} 58. Kf3 {[%emt 0:00:42]} Rb3+ {[%emt 0:00:21]} 59. Ke4 {[%emt 0:00:33]} Kf7 {[%emt 0:01:09]} 60. e6+ {[%emt 0:00:34]} 1-0

[Event "European School-ch 2019"]
[Site "Mamaia"]
[Date "2019.06.07"]
[Round "8.20"]
[White "Gurel, Ediz"]
[Black "Magold, Filip"]
[Result "1/2-1/2"]
[ECO "B43"]
[WhiteElo "1914"]
[BlackElo "1906"]
[Annotator "NA RC"]
[PlyCount "99"]
[EventDate "2019.05.31"]
[EventType "swiss"]
[EventCountry "ROU"]
[SourceTitle "playchess.com"]
[Source "ChessBase"]
[SourceQuality "1"]
[TimeControl "40/5400+30:1800+30"]

1. e4 {[%emt 0:00:00]} c5 {[%emt 0:00:00]} 2. Nf3 {[%emt 0:00:03]} e6 {[%emt 0:00:00]} 3. d4 {[%emt 0:00:30]} cxd4 {[%emt 0:00:00]} 4. Nxd4 {[%emt 0:00:35]} a6 {[%emt 0:00:05]} 5. Nc3 {[%emt 0:00:36]} Qc7 {[%emt 0:00:18]} 6. g3 {[%emt 0:00:32]} Nf6 {[%emt 0:01:32]} 7. Bg2 {[%emt 0:00:33]} d6 {[%emt 0:02:02]} 8. O-O {[%emt 0:01:10]} Nbd7 {[%emt 0:03:33]} 9. f4 {[%emt 0:01:30]} Be7 {[%emt 0:02:44]} 10. g4 {[%emt 0:01:40]} h6 {[%emt 0:05:45]} 11. h4 {[%emt 0:08:57]} Rb8 {[%emt 0:02:11]} 12. Be3 {[%emt 0:05:53]} Nb6 {[%emt 0:04:48]} 13. Qf3 {[%emt 0:07:43]} Nc4 {[%emt 0:03:40]} 14. g5 {[%emt 0:07:20]} hxg5 {[%emt 0:01:09]} 15. fxg5 {[%emt 0:03:53]} Ne5 {[%emt 0:00:13]} 16. Qg3 {[%emt 0:03:02]} Nfg4 {[%emt 0:01:23]} 17. Bd2 {[%emt 0:05:20]} Qb6 {[%emt 0:02:09]} 18. Nce2 {[%emt 0:00:37]} Nc4 {[%emt 0:02:04]} 19. Qxg4 {[%emt 0:06:12]} Nxd2 {[%emt 0:00:33]} 20. Rf2 {[%emt 0:01:24]} e5 {[%emt 0:02:00]} 21. Nf5 {[%emt 0:00:07]} g6 {[%emt 0:00:25]} 22. Rd1 {[%emt 0:00:13]} Nc4 {[%emt 0:11:08]} 23. Rd3 {[%emt 0:07:31]} gxf5 {[%emt 0:01:12]} 24. exf5 {[%emt 0:00:06]} Ne3 {[%emt 0:01:10]} 25. Qf3 {[%emt 0:00:57]} Nxf5 {[%emt 0:03:05]} 26. Bh3 {[%emt 0:01:07]} Rxh4 {[%emt 0:00:16]} 27. Bxf5 {[%emt 0:00:57]} Qc6 {[%emt 0:07:04]} 28. Ng3 {[%emt 0:10:37]} Rf4 {[%emt 0:08:39]} 29. Qxc6+ {[%emt 0:06:08]} bxc6 {[%emt 0:00:05]} 30. Rxf4 {[%emt 0:01:48]} exf4 {[%emt 0:00:13]} 31. Bxc8 {[%emt 0:00:05]} fxg3 {[%emt 0:01:07]} 32. Bxa6 {[%emt 0:00:08]} Rxb2 {[%emt 0:00:04]} 33. Rxg3 {[%emt 0:00:18]} Rxc2 {[%emt 0:00:39]} 34. a4 {[%emt 0:01:36]} Rc5 {[%emt 0:00:40]} 35. g6 {[%emt 0:01:04]} fxg6 {[%emt 0:00:06]} 36. Rxg6 {[%emt 0:00:05]} Ra5 {[%emt 0:00:18]} 37. Bb7 {[%emt 0:00:08]} Kd7 {[%emt 0:00:40]} 38. Rg7 {[%emt 0:00:09]} Ra7 {[%emt 0:00:09]} 39. Rxe7+ {[%emt 0:00:33]} Kxe7 {[%emt 0:00:05]} 40. Bxc6 {[%emt 0:00:00]} Ke6 {[%emt 0:00:00]} 41. Kf2 {[%emt 0:00:34]} Ke5 {[%emt 0:00:11]} 42. Ke3 {[%emt 0:00:09]} Rc7 {[%emt 0:00:56]} 43. Bb5 {[%emt 0:00:10]} d5 {[%emt 0:00:09]} 44. Kd3 {[%emt 0:00:46]} d4 {[%emt 0:00:36]} 45. Bc4 {[%emt 0:00:52]} Rc5 {[%emt 0:00:02]} 46. Ba6 {[%emt 0:00:28]} Rc3+ {[%emt 0:00:05]} 47. Kd2 {[%emt 0:00:05]} Ra3 {[%emt 0:00:12]} 48. Bb5 {[%emt 0:00:11]} Kd5 {[%emt 0:00:10]} 49. Be8 {[%emt 0:00:46]} d3 {[%emt 0:00:07]} 50. Ke3 {[%emt 0:01:23]} 1/2-1/2

[Event "European School-ch 2019"]
[Site "Mamaia"]
[Date "2019.06.07"]
[Round "8.21"]
[White "Durak, Can"]
[Black "Sapocinic, Semion"]
[Result "1/2-1/2"]
[ECO "E10"]
[WhiteElo "1646"]
[BlackElo "1697"]
[Annotator "NA RC"]
[PlyCount "60"]
[EventDate "2019.05.31"]
[EventType "swiss"]
[EventCountry "ROU"]
[SourceTitle "playchess.com"]
[Source "ChessBase"]
[SourceQuality "1"]
[TimeControl "40/5400+30:1800+30"]

1. d4 {[%emt 0:00:10]} Nf6 {[%emt 0:00:00]} 2. c4 {[%emt 0:00:28]} e6 {[%emt 0:00:00]} 3. Nf3 {[%emt 0:00:44]} Nc6 {[%emt 0:00:08]} 4. Nc3 {[%emt 0:04:27]} Bb4 {[%emt 0:01:38]} 5. Bg5 {[%emt 0:02:15]} h6 {[%emt 0:01:48]} 6. Bxf6 {[%emt 0:01:52]} Qxf6 {[%emt 0:00:14]} 7. e3 {[%emt 0:00:54]} d6 {[%emt 0:01:57]} 8. Rc1 {[%emt 0:01:01]} O-O {[%emt 0:05:15]} 9. Be2 {[%emt 0:02:13]} a5 {[%emt 0:02:36]} 10. O-O Bxc3 {[%emt 0:03:05]} 11. Rxc3 {[%emt 0:01:20]} a4 {[%emt 0:00:50]} 12. a3 {[%emt 0:10:28]} e5 {[%emt 0:01:42]} 13. h3 {[%emt 0:08:56]} Bf5 {[%emt 0:05:07]} 14. d5 {[%emt 0:05:18]} Nb8 {[%emt 0:02:29]} 15. c5 {[%emt 0:01:21]} Nd7 {[%emt 0:06:20]} 16. cxd6 {[%emt 0:03:16]} cxd6 {[%emt 0:12:08]} 17. Nd2 {[%emt 0:06:51]} Nc5 {[%emt 0:01:59]} 18. Nc4 {[%emt 0:03:21]} b5 {[%emt 0:01:57]} 19. Nd2 {[%emt 0:02:31]} Rfb8 {[%emt 0:02:21]} 20. Bg4 {[%emt 0:05:25]} Bh7 {[%emt 0:03:44]} 21. f4 {[%emt 0:03:07]} e4 {[%emt 0:06:04]} 22. Qc2 {[%emt 0:02:51]} Qe7 {[%emt 0:03:41]} 23. f5 {[%emt 0:04:34]} Qe5 {[%emt 0:01:31]} 24. Rf4 {[%emt 0:00:41]} Re8 {[%emt 0:00:29]} 25. Be2 {[%emt 0:01:06]} Rab8 {[%emt 0:02:10]} 26. b4 {[%emt 0:03:18]} axb3 {[%emt 0:05:21]} 27. Nxb3 {[%emt 0:00:09]} Nxb3 {[%emt 0:00:45]} 28. Qxb3 {[%emt 0:00:36]} Bxf5 {[%emt 0:03:18]} 29. Bxb5 {[%emt 0:00:52]} Bd7 30. a4 Bf5 1/2-1/2

[Event "European School-ch 2019"]
[Site "Mamaia"]
[Date "2019.06.07"]
[Round "8.22"]
[White "Gabulov, Ilkin"]
[Black "Cnejev, Vladimir-Alexandru"]
[Result "0-1"]
[ECO "D35"]
[WhiteElo "1288"]
[BlackElo "1970"]
[Annotator "NA RC"]
[PlyCount "150"]
[EventDate "2019.05.31"]
[EventType "swiss"]
[EventCountry "ROU"]
[SourceTitle "playchess.com"]
[Source "ChessBase"]
[SourceQuality "1"]
[TimeControl "40/5400+30:1800+30"]

1. d4 {[%emt 0:00:00]} d5 {[%emt 0:00:00]} 2. c4 {[%emt 0:00:00]} e6 {[%emt 0:00:00]} 3. Nc3 {[%emt 0:00:03]} Nf6 {[%emt 0:00:00]} 4. cxd5 {[%emt 0:00:14]} exd5 {[%emt 0:00:00]} 5. Bg5 {[%emt 0:00:14]} c6 {[%emt 0:00:04]} 6. e3 {[%emt 0:00:53]} Bf5 {[%emt 0:00:07]} 7. Qf3 {[%emt 0:01:09]} Bg6 {[%emt 0:00:07]} 8. Bxf6 {[%emt 0:00:09]} Qxf6 {[%emt 0:00:06]} 9. Qxf6 gxf6 {[%emt 0:00:02]} 10. Nf3 {[%emt 0:02:54]} Nd7 {[%emt 0:04:58] D35: Queen's Gambit Declined: Exchange Variation} 11. Nh4 {[%emt 0:03:10]} Be7 {[%emt 0:00:39]} 12. f4 {[%emt 0:04:29]} (12. Ne2 f5 13. g3 Bxh4 14. gxh4 Nf6 15. Bh3 Nh5 16. b4 Ke7 17. Kd2 a6 18. a4 {½-½ (34) Vachier Lagrave,M (2778)-Vitiugov,N (2709) Shenzhen 2018}) 12... f5 {[%emt 0:00:21]} 13. Nf3 {[%emt 0:00:44]} Nf6 {[%emt 0:13:57]} 14. Bd3 $146 {[%emt 0:11:35]} ({Predecessor:} 14. a3 Ne4 15. Rc1 O-O 16. Bd3 Nd6 17. Na4 b5 18. Nc5 Nc4 19. Bxc4 bxc4 20. Na6 f6 21. Rc3 Rfc8 22. b3 cxb3 {½-½ (22) Ashwath,R (2290)-Pujari,R (2153) Abu Dhabi 2017}) 14... O-O-O {[%emt 0:03:42]} 15. h3 {[%emt 0:09:45]} Rde8 {[%emt 0:29:26]} 16. O-O {[%emt 0:09:21]} Bb4 {[%emt 0:15:10]} 17. Rfe1 {[%emt 0:03:09]} Ne4 {[%emt 0:07:45]} 18. Rac1 {[%emt 0:02:13]} Bxc3 {[%emt 0:07:33]} 19. bxc3 {[%emt 0:00:26]} b5 {[%emt 0:00:05]} 20. Ne5 {[%emt 0:05:31]} Kc7 {[%emt 0:01:22]} 21. Rc2 {[%emt 0:14:19]} Rhg8 {[%emt 0:01:34]} 22. Nf3 {[%emt 0:01:30]} Rb8 {[%emt 0:02:49]} 23. Rb1 {[%emt 0:00:55]} Rge8 {[%emt 0:02:44]} 24. Re1 {[%emt 0:00:42]} Rb6 {[%emt 0:00:08]} 25. Nd2 {[%emt 0:04:06]} Nxd2 {[%emt 0:01:15]} 26. Rxd2 {[%emt 0:00:27]} Ra6 {[%emt 0:00:41]} 27. Kf2 {[%emt 0:02:06]} Ra3 {[%emt 0:00:30]} 28. Rc1 {[%emt 0:00:53]} Kd6 {[%emt 0:00:15]} 29. Bb1 {[%emt 0:01:05]} Rc8 {[%emt 0:00:49]} 30. h4 {[%emt 0:01:56]} h5 {[%emt 0:00:18]} 31. Bd3 {[%emt 0:00:48]} a6 {[%emt 0:00:15]} 32. Be2 {[%emt 0:00:31]} f6 {[%emt 0:00:35]} 33. Bf3 {[%emt 0:00:24]} Bf7 {[%emt 0:00:10]} 34. Rdc2 {[%emt 0:00:48]} c5 {[%emt 0:00:17]} 35. Ke2 {[%emt 0:00:16]} Ra4 {[%emt 0:02:08]} 36. Kd2 {[%emt 0:00:44]} Rb8 {[%emt 0:02:10]} 37. Rb2 {[%emt 0:01:39]} Rb6 {[%emt 0:01:29]} 38. Bd1 {[%emt 0:00:26]} Ra3 {[%emt 0:00:15]} 39. Bc2 {[%emt 0:00:21]} Be6 {[%emt 0:00:35]} 40. Bd1 {[%emt 0:00:00]} Bf7 {[%emt 0:00:00]} 41. Bc2 {[%emt 0:00:11]} Bg6 {[%emt 0:01:33]} 42. Bd1 {[%emt 0:01:18]} Rc6 {[%emt 0:00:27]} 43. Be2 {[%emt 0:03:19]} c4 {[%emt 0:01:52]} 44. Rcb1 {[%emt 0:05:24]} Rb6 {[%emt 0:00:35]} 45. Kc2 {[%emt 0:00:39]} Kc6 {[%emt 0:00:20]} 46. Bf3 {[%emt 0:08:50]} Bf7 {[%emt 0:03:59]} 47. Kd2 {[%emt 0:06:25]} a5 {[%emt 0:02:42]} 48. Rc1 {[%emt 0:02:24]} Kc7 {[%emt 0:01:01]} 49. Kc2 {[%emt 0:00:56]} Kd6 {[%emt 0:12:46]} 50. Rcb1 {[%emt 0:00:56]} Be8 {[%emt 0:01:03]} 51. Bd1 {[%emt 0:01:59]} (51. Rc1 {keeps fighting.}) 51... Ke6 {[%emt 0:05:10]} 52. Bf3 {[%emt 0:01:46] [#]} (52. Rc1 $17) 52... b4 $1 {[%emt 0:02:40]} 53. cxb4 {[%emt 0:00:47] [#]} c3 $1 {[%emt 0:03:28]} 54. Rb3 {[%emt 0:00:40]} Ba4 {[%emt 0:00:28]} 55. Kxc3 $2 {[%emt 0:00:31]} (55. bxa5 $15 Rc6 56. Kd3 Bxb3 57. axb3) 55... axb4+ {[%emt 0:01:39]} 56. Kb2 $19 {[%emt 0:00:56]} Bxb3 {[%emt 0:00:07]} 57. axb3 {[%emt 0:00:14]} Rba6 {[%emt 0:00:12]} 58. Kc1 {[%emt 0:00:30]} Ra2 {[%emt 0:01:10]} 59. Rb2 {[%emt 0:00:16]} Rc6+ {[%emt 0:00:07]} 60. Kb1 {[%emt 0:00:11]} Rxb2+ {[%emt 0:00:08]} 61. Kxb2 {[%emt 0:00:14]} Rc3 {[%emt 0:00:11]} 62. Bxh5 {[%emt 0:00:15]} Rxe3 63. Kc2 {[%emt 0:00:59]} Rc3+ {[%emt 0:01:17]} 64. Kd2 {[%emt 0:00:14]} Rxb3 {[%emt 0:00:04]} 65. Kc2 {[%emt 0:00:20]} Rc3+ {[%emt 0:00:11]} 66. Kd2 {[%emt 0:00:06]} Rc8 {[%emt 0:00:08]} 67. Bd1 {[%emt 0:00:08]} Rc4 {[%emt 0:01:01]} 68. Kd3 {[%emt 0:00:05]} Rc3+ {[%emt 0:00:05]} 69. Kd2 {[%emt 0:00:04]} Ke7 {[%emt 0:01:31]} 70. Bf3 {[%emt 0:00:09]} Rc4 {[%emt 0:00:24]} 71. Kd3 {[%emt 0:00:24]} b3 {[%emt 0:00:24]} 72. Bd1 {[%emt 0:00:05]} b2 {[%emt 0:00:04]} 73. Bc2 {[%emt 0:00:03]} Kf7 {[%emt 0:00:36]} 74. Kd2 {[%emt 0:01:04]} Rxd4+ {[%emt 0:00:16]} 75. Kc3 {[%emt 0:00:05]} Rxf4 {[%emt 0:00:06] Kd4} 0-1